bitfinex-derivatives/quotes_BTCF0:USTF0_20250929
["timestamp","ask_amount","ask_price","bid_price","bid_amount"]
[1759170067593,0.14393604,114020.0,114010.0,1.64008641]
[1759170070693,0.13022604,114020.0,114010.0,1.64008641]
[1759170070990,0.13022604,114020.0,114010.0,1.68718403]
[1759170071188,0.14393604,114020.0,114010.0,1.68718403]
[1759170072593,0.14393604,114020.0,114010.0,1.67756403]
[1759170074596,0.14393604,114020.0,114010.0,1.68714403]
[1759170076195,0.14393604,114020.0,114010.0,1.67756403]
[1759170078600,0.16160503,114020.0,114010.0,1.67756403]
[1759170078802,0.16160503,114020.0,114010.0,1.67752403]
[1759170080196,0.16160503,114020.0,114010.0,1.67767816]
[1759170082105,0.14789503,114020.0,114010.0,1.68725816]
[1759170084996,0.14789503,114020.0,114010.0,1.64016054]
[1759170086398,0.16095503,114020.0,114010.0,0.82898054]
[1759170086603,0.16095503,114020.0,114010.0,1.63054054]
[1759170087102,0.16095503,114020.0,114010.0,1.63050054]
[1759170087602,0.19252923,114020.0,114010.0,1.64008054]
[1759170089800,0.16095503,114020.0,114010.0,1.64008054]
[1759170093101,0.16095503,114020.0,114010.0,0.83856054]
[1759170093301,0.16095503,114020.0,114010.0,1.64004054]
[1759170095307,0.16095503,114020.0,114010.0,1.63042054]
[1759170095912,0.16095503,114020.0,114010.0,0.82898054]
[1759170096109,0.16095503,114020.0,114010.0,1.63042054]
[1759170098212,0.16095503,114020.0,114010.0,0.82898054]
[1759170098408,0.16095503,114020.0,114010.0,1.63042054]
[1759170099206,0.16095503,114020.0,114010.0,0.82898054]
[1759170099408,0.16095503,114020.0,114010.0,1.63042054]
[1759170099914,0.16095503,114020.0,114010.0,1.63038054]
[1759170103418,0.12559503,114020.0,114010.0,1.63996054]
[1759170103919,0.12559503,114020.0,114010.0,1.68705816]
[1759170109632,0.12559503,114020.0,114010.0,1.68693816]
[1759170113736,0.02028024,114020.0,114010.0,2.08693816]
[1759170114040,0.0876381,114030.0,114020.0,0.123567]
[1759170114228,0.0876381,114030.0,114020.0,0.88050666]
[1759170114633,0.1053974,114030.0,114020.0,0.88050666]
[1759170114833,0.1053974,114030.0,114020.0,0.88946798]
[1759170115235,0.1264074,114030.0,114020.0,0.88050666]
[1759170115435,0.1264074,114030.0,114020.0,0.88350666]
[1759170115840,0.1264074,114030.0,114020.0,1.63449404]
[1759170116142,0.1264074,114030.0,114020.0,1.63549404]
[1759170116641,0.1264074,114030.0,114020.0,0.485367]
[1759170116843,0.1264074,114030.0,114020.0,1.63549404]
[1759170118442,0.1264074,114030.0,114020.0,1.63545404]
[1759170118642,0.1264074,114030.0,114020.0,0.83429404]
[1759170118844,0.1264074,114030.0,114020.0,1.63545404]
[1759170121243,0.1264074,114030.0,114020.0,0.485367]
[1759170121546,0.1264074,114030.0,114020.0,1.63541404]
[1759170126046,0.14621647,114030.0,114020.0,1.63541404]
[1759170127147,0.03756837,114030.0,114020.0,1.63541404]
[1759170127858,0.03756837,114030.0,114020.0,2.03541404]
[1759170128957,0.12520757,114030.0,114020.0,2.03541404]
[1759170129655,0.12520757,114030.0,114020.0,1.23429404]
[1759170129858,0.12520757,114030.0,114020.0,2.03529404]
[1759170130058,0.12520757,114030.0,114020.0,1.23429404]
[1759170130258,0.12520757,114030.0,114020.0,2.03529404]
[1759170131459,0.12520757,114030.0,114020.0,1.23429404]
[1759170131654,0.12520757,114030.0,114020.0,2.03525404]
[1759170135053,0.1053985,114030.0,114020.0,2.08246666]
[1759170135458,0.1053985,114030.0,114020.0,1.28150666]
[1759170135657,0.1053985,114030.0,114020.0,2.08238666]
[1759170135959,0.1053985,114030.0,114020.0,1.68238666]
[1759170139455,0.1053985,114030.0,114020.0,1.68234666]
[1759170140362,0.1053985,114030.0,114020.0,2.03101104]
[1759170140956,0.1053985,114030.0,114020.0,1.23017104]
[1759170141161,0.12513987,114030.0,114020.0,1.23017104]
[1759170141359,0.49623558,114030.0,114020.0,0.44493262]
[1759170141561,0.50988558,114030.0,114020.0,0.38491]
[1759170141862,0.911201,114030.0,114020.0,0.3618]
[1759170142062,0.911201,114030.0,114020.0,0.38293]
[1759170143450,1.62079671,114030.0,114020.0,0.001]
[1759170143658,1.272001,114030.0,114020.0,0.001]
[1759170143962,1.34244537,114030.0,114020.0,0.001]
[1759170144162,1.37401957,114030.0,114020.0,0.001]
[1759170144366,1.34244537,114030.0,114020.0,0.001]
[1759170145061,0.98164537,114030.0,114020.0,0.001]
[1759170145364,0.63284966,114030.0,114020.0,0.02213]
[1759170145563,0.98164537,114030.0,114020.0,0.02213]
[1759170146855,0.98164537,114030.0,114020.0,0.001]
[1759170149667,0.98164537,114030.0,114020.0,0.02213]
[1759170150969,1.78236537,114030.0,114020.0,0.02213]
[1759170152371,1.78236537,114030.0,114020.0,0.001]
[1759170154873,1.78236537,114030.0,114020.0,0.02213]
[1759170155170,2.49196108,114030.0,114020.0,0.001]
[1759170155370,2.14316537,114030.0,114020.0,0.001]
[1759170155572,2.14312537,114030.0,114020.0,0.001]
[1759170156074,1.34244537,114030.0,114020.0,0.001]
[1759170156375,2.14312537,114030.0,114020.0,0.001]
[1759170157472,2.49192108,114030.0,114020.0,0.001]
[1759170159484,2.09192108,114030.0,114020.0,0.001]
[1759170160085,2.09188108,114030.0,114020.0,0.001]
[1759170161684,1.29124108,114030.0,114020.0,0.001]
[1759170161886,2.09188108,114030.0,114020.0,0.001]
[1759170162687,1.29124108,114030.0,114020.0,0.001]
[1759170162887,2.09188108,114030.0,114020.0,0.001]
[1759170163082,1.29124108,114030.0,114020.0,0.001]
[1759170163384,2.09188108,114030.0,114020.0,0.001]
[1759170163686,1.29124108,114030.0,114020.0,0.001]
[1759170163888,2.09188108,114030.0,114020.0,0.001]
[1759170164391,1.29124108,114030.0,114020.0,0.001]
[1759170164588,1.74308537,114030.0,114020.0,0.02213]
[1759170165186,0.94244537,114030.0,114020.0,0.02213]
[1759170165489,1.74308537,114030.0,114020.0,0.02213]
[1759170166389,0.94244537,114030.0,114020.0,0.02213]
[1759170166689,1.74304537,114030.0,114020.0,0.02213]
[1759170170187,1.77461957,114030.0,114020.0,0.02213]
[1759170172396,1.77461957,114030.0,114020.0,0.001]
[1759170174787,2.12341528,114030.0,114020.0,0.001]
[1759170174989,2.13914851,114030.0,114020.0,0.001]
[1759170179391,2.13902851,114030.0,114020.0,0.001]
[1759170181397,2.53902851,114030.0,114020.0,2.601e-05]
[1759170181698,2.55476045,114030.0,114020.0,2.601e-05]
[1759170183699,2.49172108,114030.0,114020.0,2.601e-05]
[1759170184092,2.55476045,114030.0,114020.0,2.601e-05]
[1759170184996,2.53906294,114030.0,114020.0,2.601e-05]
[1759170185403,2.88785865,114030.0,114020.0,2.601e-05]
[1759170185588,2.84051679,114030.0,114020.0,2.601e-05]
[1759170185792,2.88785527,114030.0,114020.0,2.601e-05]
[1759170186192,2.84051679,114030.0,114020.0,2.601e-05]
[1759170186394,2.88784096,114030.0,114020.0,2.601e-05]
[1759170186596,2.84051679,114030.0,114020.0,2.601e-05]
[1759170186791,2.84043679,114030.0,114020.0,2.601e-05]
[1759170187392,0.1235323,114000.0,113990.0,0.38245]
[1759170187598,1.64260271,114000.0,113990.0,0.38245]
[1759170188696,0.84220271,114000.0,113990.0,0.39645]
[1759170188897,1.64260271,114000.0,113990.0,0.39645]
[1759170189092,1.64260271,114000.0,113990.0,0.38245]
[1759170189295,1.64260271,114000.0,113990.0,0.38945]
[1759170190306,0.84220271,114000.0,113990.0,0.38945]
[1759170190606,1.64260271,114000.0,113990.0,0.38945]
[1759170191902,0.84220271,114000.0,113990.0,0.38945]
[1759170192101,1.64260271,114000.0,113990.0,0.38945]
[1759170192604,1.65140626,114000.0,113990.0,0.38945]
[1759170196303,0.85100626,114000.0,113990.0,0.38945]
[1759170196503,1.65140626,114000.0,113990.0,0.38945]
[1759170198096,1.65140626,114000.0,113990.0,0.02865]
[1759170199800,1.65140626,114000.0,113990.0,0.007]
[1759170200001,1.65140626,114000.0,113990.0,0.02881]
[1759170200200,1.30297756,114000.0,113990.0,0.007]
[1759170200706,1.30297756,114000.0,113990.0,0.02881]
[1759170201307,1.3203581,114000.0,113990.0,0.02881]
[1759170201907,0.5199581,114000.0,113990.0,0.02881]
[1759170202101,1.3202781,114000.0,113990.0,0.02881]
[1759170202807,1.3202781,114000.0,113990.0,0.007]
[1759170203004,1.66944082,114000.0,113990.0,0.007]
[1759170204206,1.66814904,114000.0,113990.0,0.007]
[1759170204509,1.66945457,114000.0,113990.0,0.007]
[1759170204704,0.1227998,113990.0,113980.0,0.38261]
[1759170204910,0.47970973,113990.0,113980.0,0.38261]
[1759170206111,1.28002973,113990.0,113980.0,0.38661]
[1759170206312,1.28002973,113990.0,113980.0,0.4742875]
[1759170206506,1.28002973,113990.0,113980.0,0.38661]
[1759170206902,1.28002973,113990.0,113980.0,0.38261]
[1759170207209,1.35141742,113990.0,113980.0,0.3648]
[1759170207512,1.35141742,113990.0,113980.0,0.38661]
[1759170208607,0.2019347,113990.0,113980.0,0.4742876]
[1759170208807,1.35141742,113990.0,113980.0,0.4742876]
[1759170210916,1.35141742,113990.0,113980.0,0.38661]
[1759170213518,0.55109742,113990.0,113980.0,0.38661]
[1759170213718,1.35141742,113990.0,113980.0,0.38661]
[1759170214523,1.0022147,113990.0,113980.0,0.4742875]
[1759170214722,1.35137742,113990.0,113980.0,0.4742875]
[1759170214920,1.35137742,113990.0,113980.0,0.38661]
[1759170216721,0.55109742,113990.0,113980.0,0.38661]
[1759170216921,1.35137742,113990.0,113980.0,0.38661]
[1759170220924,0.55109742,113990.0,113980.0,0.38661]
[1759170221124,1.0022147,113990.0,113980.0,0.38661]
[1759170221423,1.35137742,113990.0,113980.0,0.38661]
[1759170223413,0.55109742,113990.0,113980.0,0.38661]
[1759170223618,1.35133742,113990.0,113980.0,0.38661]
[1759170223821,0.55109742,113990.0,113980.0,0.38661]
[1759170224021,1.35133742,113990.0,113980.0,0.38661]
[1759170225925,1.35133742,113990.0,113980.0,0.3648]
[1759170226831,1.35133742,113990.0,113980.0,0.004]
[1759170227922,0.1228073,113980.0,113970.0,0.52314518]
[1759170228125,0.49302572,113980.0,113970.0,0.52314518]
[1759170229231,1.29326572,113980.0,113970.0,0.52714518]
[1759170229428,1.29326572,113980.0,113970.0,0.52314518]
[1759170229733,1.29326572,113980.0,113970.0,0.52514518]
[1759170229932,1.20558842,113980.0,113970.0,0.52514518]
[1759170230531,0.49302572,113980.0,113970.0,0.52514518]
[1759170230730,1.20558842,113980.0,113970.0,0.52514518]
[1759170230930,1.29326572,113980.0,113970.0,0.52514518]
[1759170231936,1.29322572,113980.0,113970.0,0.52514518]
[1759170232236,0.49302572,113980.0,113970.0,0.52514518]
[1759170232434,1.29322572,113980.0,113970.0,0.52514518]
[1759170236141,1.27896679,113980.0,113970.0,0.52514518]
[1759170236342,1.29236679,113980.0,113970.0,0.52514518]
[1759170236542,0.49216679,113980.0,113970.0,0.52514518]
[1759170236737,1.29236679,113980.0,113970.0,0.52514518]
[1759170237738,0.49216679,113980.0,113970.0,0.52514518]
[1759170237941,1.29236679,113980.0,113970.0,0.52514518]
[1759170239341,0.49216679,113980.0,113970.0,0.52514518]
[1759170239544,1.29236679,113980.0,113970.0,0.52514518]
[1759170248242,1.29236679,113980.0,113970.0,0.51961518]
[1759170253851,0.14300407,113980.0,113970.0,0.51961518]
[1759170254053,0.49216679,113980.0,113970.0,0.51961518]
[1759170254247,1.29224679,113980.0,113970.0,0.51961518]
[1759170255652,0.94308407,113980.0,113970.0,0.51961518]
[1759170255853,1.29224679,113980.0,113970.0,0.51961518]
[1759170256653,1.27798759,113980.0,113970.0,0.43193098]
[1759170257256,1.27798759,113980.0,113970.0,0.38471836]
[1759170258056,0.12874487,113980.0,113970.0,0.38271836]
[1759170258354,1.27998759,113980.0,113970.0,0.47040316]
[1759170258654,1.27898759,113980.0,113970.0,0.47040316]
[1759170260353,1.27798759,113980.0,113970.0,0.47040316]
[1759170260653,1.28198759,113980.0,113970.0,0.47040316]
[1759170260860,0.13574487,113980.0,113970.0,0.47040316]
[1759170261054,1.28498759,113980.0,113970.0,0.47040316]
[1759170262358,1.63435521,113980.0,113970.0,0.47040316]
[1759170262860,0.93583337,113980.0,113970.0,0.47040316]
[1759170263062,1.18398124,113980.0,113970.0,0.83330833]
[1759170263755,1.27165834,113980.0,113970.0,0.83330833]
[1759170264960,0.47161834,113980.0,113970.0,0.83330833]
[1759170265257,1.27165834,113980.0,113970.0,0.83330833]
[1759170265852,0.38394124,113980.0,113970.0,0.83330833]
[1759170266053,1.18398124,113980.0,113970.0,0.83330833]
[1759170266454,1.27165834,113980.0,113970.0,0.83330833]
[1759170269050,0.92239317,113980.0,113970.0,0.83330833]
[1759170269252,1.27165834,113980.0,113970.0,0.83330833]
[1759170270258,0.92239317,113980.0,113970.0,0.83330833]
[1759170270453,1.27165834,113980.0,113970.0,0.83330833]
[1759170270857,1.28529834,113980.0,113970.0,0.83330833]
[1759170271861,1.28529834,113980.0,113970.0,0.48404316]
[1759170272162,1.28529834,113980.0,113970.0,0.38271836]
[1759170272163,1.63456351,113980.0,113970.0,0.38271836]
[1759170272662,2.4153705,113980.0,113970.0,0.00010836]
[1759170272863,2.38382868,113980.0,113970.0,0.00010836]
[1759170273360,2.03456351,113980.0,113970.0,0.00010836]
[1759170273758,2.38382868,113980.0,113970.0,0.00010836]
[1759170274059,2.7761705,113980.0,113970.0,0.00010836]
[1759170274461,2.79194142,113980.0,113970.0,0.00010836]
[1759170274857,0.94410591,113980.0,113970.0,0.00010836]
[1759170275056,2.8234996,113980.0,113970.0,0.00010836]
[1759170275258,2.77618686,113980.0,113970.0,0.00010836]
[1759170275458,1.97614686,113980.0,113970.0,0.00010836]
[1759170275657,2.77618686,113980.0,113970.0,0.00010836]
[1759170275863,1.97614686,113980.0,113970.0,0.00010836]
[1759170276162,2.02692169,113980.0,113970.0,0.02138836]
[1759170276556,2.07423443,113980.0,113970.0,0.00010836]
[1759170277959,1.27419443,113980.0,113970.0,0.00010836]
[1759170278163,2.07423443,113980.0,113970.0,0.00010836]
[1759170278661,2.4234996,113980.0,113970.0,0.00010836]
[1759170278862,2.37618686,113980.0,113970.0,0.00010836]
[1759170279560,2.8234996,113980.0,113970.0,0.00010836]
[1759170280064,0.14060395,113950.0,113940.0,0.51699562]
[1759170280369,1.3107364,113950.0,113940.0,0.469783]
[1759170281064,1.31081834,113950.0,113940.0,0.469783]
[1759170281255,1.29107106,113950.0,113940.0,0.469783]
[1759170281866,1.29107106,113950.0,113940.0,0.477313]
[1759170282166,1.63177845,113950.0,113940.0,0.49772788]
[1759170282465,1.6515143,113950.0,113940.0,0.49772788]
[1759170282667,1.6515143,113950.0,113940.0,0.39661]
[1759170283361,0.8503943,113950.0,113940.0,0.39661]
[1759170283560,1.6515943,113950.0,113940.0,0.39661]
[1759170283760,0.8503943,113950.0,113940.0,0.39661]
[1759170283957,0.8503943,113950.0,113940.0,0.4843179]
[1759170284168,1.6514743,113950.0,113940.0,0.4843179]
[1759170284466,1.31097546,113950.0,113940.0,0.4843179]
[1759170284962,0.50989546,113950.0,113940.0,0.4843179]
[1759170285162,0.49015961,113950.0,113940.0,0.4843179]
[1759170285369,1.29115961,113950.0,113940.0,0.4843179]
[1759170286066,0.49015961,113950.0,113940.0,0.4843179]
[1759170286269,1.29107961,113950.0,113940.0,0.4843179]
[1759170286568,0.94181444,113950.0,113940.0,0.4843179]
[1759170286768,1.29107961,113950.0,113940.0,0.4843179]
[1759170287758,1.64034478,113950.0,113940.0,0.4843179]
[1759170287963,1.64034478,113950.0,113940.0,0.39661]
[1759170288572,1.70914795,113950.0,113940.0,0.39661]
[1759170288770,1.72890197,113950.0,113940.0,0.39661]
[1759170288971,1.72938197,113950.0,113940.0,0.4843179]
[1759170289171,0.90822795,113950.0,113940.0,0.4843179]
[1759170289372,1.71010795,113950.0,113940.0,0.4843179]
[1759170291077,0.90822795,113950.0,113940.0,0.4843179]
[1759170291270,1.71010795,113950.0,113940.0,0.4843179]
[1759170293073,0.90822795,113950.0,113940.0,0.4843179]
[1759170293281,1.70994795,113950.0,113940.0,0.4843179]
[1759170295779,1.70982795,113950.0,113940.0,0.4843179]
[1759170296282,0.90822795,113950.0,113940.0,0.4843179]
[1759170296484,1.36040278,113950.0,113940.0,0.4976379]
[1759170296683,1.36040278,113950.0,113940.0,0.4843179]
[1759170297182,1.38015811,113950.0,113940.0,0.4843179]
[1759170297578,1.39015811,113950.0,113940.0,0.4843179]
[1759170298386,1.39016073,113950.0,113940.0,0.4843179]
[1759170299089,0.58872073,113950.0,113940.0,0.4843179]
[1759170299482,1.39000073,113950.0,113940.0,0.4976379]
[1759170299788,1.38000073,113950.0,113940.0,0.4976379]
[1759170300291,1.38900332,113950.0,113940.0,0.84690307]
[1759170300485,1.36924537,113950.0,113940.0,0.84690307]
[1759170300790,1.38901034,113950.0,113940.0,0.4976379]
[1759170300982,1.38901034,113950.0,113940.0,0.84690307]
[1759170301183,1.3799992,113950.0,113940.0,0.84690307]
[1759170301390,1.3799992,113950.0,113940.0,0.4976379]
[1759170301885,1.3799192,113950.0,113940.0,0.84690307]
[1759170303387,0.5785192,113950.0,113940.0,0.84690307]
[1759170303587,1.3797192,113950.0,113940.0,0.84690307]
[1759170305392,0.21561403,113950.0,113940.0,1.59616824]
[1759170305589,1.3660792,113950.0,113940.0,1.29411569]
[1759170306888,1.03023403,113950.0,113940.0,0.94485052]
[1759170307089,1.3794992,113950.0,113940.0,0.94485052]
[1759170307388,1.3794992,113950.0,113940.0,1.29411569]
[1759170307789,1.3660792,113950.0,113940.0,1.29411569]
[1759170308193,0.21561403,113950.0,113940.0,1.29411569]
[1759170308390,1.3672392,113950.0,113940.0,1.29411569]
[1759170312687,1.3672392,113950.0,113940.0,0.94485052]
[1759170312893,1.3672392,113950.0,113940.0,1.29411569]
[1759170314498,1.3672392,113950.0,113940.0,0.94485052]
[1759170314706,1.3806592,113950.0,113940.0,1.29411569]
[1759170315003,1.3806592,113950.0,113940.0,1.24690307]
[1759170315392,1.3806592,113950.0,113940.0,0.8976379]
[1759170316198,0.5782992,113950.0,113940.0,0.8976379]
[1759170316400,1.3802192,113950.0,113940.0,0.8976379]
[1759170322209,1.38039339,113950.0,113940.0,0.8976379]
[1759170323609,0.57847339,113950.0,113940.0,0.8976379]
[1759170323811,1.38043339,113950.0,113940.0,0.8976379]
[1759170325013,0.57847339,113950.0,113940.0,0.94485052]
[1759170325310,1.38035339,113950.0,113940.0,0.94485052]
[1759170326009,1.03083403,113950.0,113940.0,0.94485052]
[1759170326210,1.38027339,113950.0,113940.0,0.94485052]
[1759170329914,1.38027339,113950.0,113940.0,0.93153052]
[1759170330117,1.38027339,113950.0,113940.0,0.93153002]
[1759170330815,1.38027339,113950.0,113940.0,0.84382262]
[1759170331612,1.38027339,113950.0,113940.0,0.44382262]
[1759170332212,0.57847339,113950.0,113940.0,0.53153002]
[1759170332412,1.38003339,113950.0,113940.0,0.53153002]
[1759170332714,1.37999339,113950.0,113940.0,0.53153002]
[1759170333808,0.57847339,113950.0,113940.0,0.54495002]
[1759170334111,1.37995339,113950.0,113940.0,0.54495002]
[1759170334713,0.57847339,113950.0,113940.0,0.54495002]
[1759170334914,1.37995339,113950.0,113940.0,0.54495002]
[1759170335111,1.37987339,113950.0,113940.0,0.54495002]
[1759170335312,0.57847339,113950.0,113940.0,0.54495002]
[1759170335511,1.37983339,113950.0,113940.0,0.54495002]
[1759170335812,0.57847339,113950.0,113940.0,0.54495002]
[1759170336013,1.37983339,113950.0,113940.0,0.54495002]
[1759170337615,0.57847339,113950.0,113940.0,0.54495002]
[1759170337820,1.36633339,113950.0,113940.0,0.54495002]
[1759170338017,0.56505339,113950.0,113940.0,0.54495002]
[1759170338215,1.36617339,113950.0,113940.0,0.54495002]
[1759170338920,1.36621339,113950.0,113940.0,0.54495002]
[1759170339619,0.56505339,113950.0,113940.0,0.54495002]
[1759170339819,0.21561403,113950.0,113940.0,0.89438938]
[1759170340020,1.01693403,113950.0,113940.0,0.54495002]
[1759170340220,1.01693403,113950.0,113940.0,0.89438938]
[1759170340620,1.01709403,113950.0,113940.0,0.54495002]
[1759170340919,1.01757403,113950.0,113940.0,0.54495002]
[1759170343620,1.36701339,113950.0,113940.0,0.54495002]
[1759170344318,1.38072339,113950.0,113940.0,0.54495002]
[1759170344719,1.38072339,113950.0,113940.0,0.53153002]
[1759170349318,0.57876339,113950.0,113940.0,0.53153002]
[1759170349519,1.38052339,113950.0,113940.0,0.53153002]
[1759170349724,1.38032339,113950.0,113940.0,0.53153002]
[1759170351928,1.38028339,113950.0,113940.0,0.53153002]
[1759170352723,1.03084403,113950.0,113940.0,0.53153002]
[1759170353637,1.38028339,113950.0,113940.0,0.53153002]
[1759170355033,1.38028339,113950.0,113940.0,0.4843174]
[1759170359443,0.57876339,113950.0,113940.0,0.4843174]
[1759170359742,1.38032339,113950.0,113940.0,0.4843174]
[1759170361645,1.38016339,113950.0,113940.0,0.4843174]
[1759170362343,0.57876339,113950.0,113940.0,0.4843174]
[1759170362742,1.38020339,113950.0,113940.0,0.4843174]
[1759170363947,1.41176157,113950.0,113940.0,0.4843174]
[1759170364539,1.41176157,113950.0,113940.0,0.39661]
[1759170365048,1.38020339,113950.0,113940.0,0.39661]
[1759170368449,1.38020339,113950.0,113940.0,0.4843172]
[1759170368652,1.38020339,113950.0,113940.0,0.39661]
[1759170370951,1.38012339,113950.0,113940.0,0.4843172]
[1759170371748,0.57876339,113950.0,113940.0,0.4843172]
[1759170372053,1.38008339,113950.0,113940.0,0.4843172]
[1759170374249,1.38000339,113950.0,113940.0,0.4843172]
[1759170375556,1.38020339,113950.0,113940.0,0.4843172]
[1759170377456,0.57876339,113950.0,113940.0,0.4843172]
[1759170377660,1.37988339,113950.0,113940.0,0.4843172]
[1759170378459,0.57876339,113950.0,113940.0,0.4843172]
[1759170378757,1.36605339,113950.0,113940.0,0.4971072]
[1759170378958,1.37940339,113950.0,113940.0,0.4971072]
[1759170379258,1.02996403,113950.0,113940.0,0.4971072]
[1759170379454,0.22880403,113950.0,113940.0,0.4971072]
[1759170379657,1.02996403,113950.0,113940.0,0.4971072]
[1759170380152,0.22880403,113950.0,113940.0,0.4971072]
[1759170380358,0.57824339,113950.0,113940.0,0.4971072]
[1759170380555,1.37932339,113950.0,113940.0,0.4971072]
[1759170380762,0.57824339,113950.0,113940.0,0.4971072]
[1759170380952,1.37928339,113950.0,113940.0,0.4971072]
[1759170381153,0.57824339,113950.0,113940.0,0.4971072]
[1759170381355,1.37920339,113950.0,113940.0,0.4971072]
[1759170381960,1.37928339,113950.0,113940.0,0.4971072]
[1759170382262,1.37926603,113950.0,113940.0,0.8465292]
[1759170382952,1.37922603,113950.0,113940.0,0.8465292]
[1759170385363,1.37914603,113950.0,113940.0,0.8465292]
[1759170385757,1.37914603,113950.0,113940.0,0.4843172]
[1759170386258,1.37914603,113950.0,113940.0,0.8337392]
[1759170387070,1.37914603,113950.0,113940.0,0.4843172]
[1759170387265,1.37914603,113950.0,113940.0,0.8337392]
[1759170388570,1.37914603,113950.0,113940.0,0.8465292]
[1759170388969,1.37914603,113950.0,113940.0,0.8337392]
[1759170390169,0.57822603,113950.0,113940.0,0.8337392]
[1759170390371,1.29236583,113950.0,113940.0,0.8465292]
[1759170390770,1.38006533,113950.0,113940.0,0.8465292]
[1759170390963,0.49052583,113950.0,113940.0,0.8465292]
[1759170391271,1.36683533,113950.0,113940.0,0.89374182]
[1759170391661,1.27913583,113950.0,113940.0,0.89374182]
[1759170392273,1.38002533,113950.0,113940.0,0.44382262]
[1759170393169,1.38002533,113950.0,113940.0,0.79324462]
[1759170393365,1.38002533,113950.0,113940.0,0.88095182]
[1759170393566,1.38002533,113950.0,113940.0,0.8337392]
[1759170394576,0.57822533,113950.0,113940.0,0.8337392]
[1759170394872,1.37998533,113950.0,113940.0,0.8337392]
[1759170395074,1.37998533,113950.0,113940.0,0.88095182]
[1759170395371,1.37998533,113950.0,113940.0,0.8337392]
[1759170395560,1.37998533,113950.0,113940.0,0.88095182]
[1759170395764,1.36675533,113950.0,113940.0,0.89374182]
[1759170396273,1.37994533,113950.0,113940.0,0.8465292]
[1759170397972,0.57822533,113950.0,113940.0,0.8465292]
[1759170398178,1.36683533,113950.0,113940.0,0.8465292]
[1759170398565,1.36683533,113950.0,113940.0,0.4971072]
[1759170398766,1.01741333,113950.0,113940.0,0.8465292]
[1759170398973,1.36683533,113950.0,113940.0,0.8465292]
[1759170399573,1.36683533,113950.0,113940.0,0.4971072]
[1759170399768,1.38002533,113950.0,113940.0,0.8465292]
[1759170399966,1.36683533,113950.0,113940.0,0.8465292]
[1759170400867,0.56503533,113950.0,113940.0,0.8465292]
[1759170401069,0.12791383,113950.0,113940.0,1.1959512]
[1759170401279,0.03720721,113950.0,113940.0,1.64316382]
[1759170401468,0.02294444,113950.0,113940.0,1.64316382]
[1759170401662,0.02294444,113950.0,113940.0,1.65182391]
[1759170401868,0.02294444,113950.0,113940.0,2.05322391]
[1759170402776,0.11064394,113950.0,113940.0,2.05322391]
[1759170403172,0.11064394,113950.0,113940.0,1.25182391]
[1759170403376,0.11064394,113950.0,113940.0,2.05310391]
[1759170404580,0.11064394,113950.0,113940.0,1.25182391]
[1759170404779,0.1050598,113950.0,113940.0,2.05294391]
[1759170405079,0.1050598,113950.0,113940.0,2.07581534]
[1759170405377,0.1050598,113950.0,113940.0,2.02860272]
[1759170406678,0.1050598,113950.0,113940.0,1.22752272]
[1759170406879,0.1050598,113950.0,113940.0,2.02860272]
[1759170408276,0.1050598,113950.0,113940.0,2.02852272]
[1759170408676,0.1050598,113950.0,113940.0,2.02848272]
[1759170411777,0.1050598,113950.0,113940.0,1.22752272]
[1759170411980,0.1050598,113950.0,113940.0,2.02844272]
[1759170414276,0.1050598,113950.0,113940.0,1.22752272]
[1759170414480,0.1050598,113950.0,113940.0,2.02816272]
[1759170415174,0.1050598,113950.0,113940.0,2.04380382]
[1759170416075,0.1050598,113950.0,113940.0,1.68300382]
[1759170416281,0.1050598,113950.0,113940.0,2.40460382]
[1759170416882,0.1050598,113950.0,113940.0,1.60396382]
[1759170417086,0.1050598,113950.0,113940.0,2.40460382]
[1759170419986,0.1050598,113950.0,113940.0,1.60396382]
[1759170420286,0.1050598,113950.0,113940.0,2.40460382]
[1759170421785,0.1050598,113950.0,113940.0,1.70575982]
[1759170421978,0.1050598,113950.0,113940.0,2.40460382]
[1759170422684,0.1050598,113950.0,113940.0,1.60396382]
[1759170422886,0.1050598,113950.0,113940.0,2.40460382]
[1759170423787,0.1050598,113950.0,113940.0,1.60396382]
[1759170424186,0.1050598,113950.0,113940.0,2.40460382]
[1759170424681,0.1050598,113950.0,113940.0,1.60396382]
[1759170424887,0.1050598,113950.0,113940.0,1.60396392]
[1759170425186,0.4683618,113950.0,113940.0,2.40464392]
[1759170425581,0.4683618,113950.0,113940.0,1.60396392]
[1759170425786,0.4683618,113950.0,113940.0,2.40464392]
[1759170426185,0.1063864,113950.0,113940.0,2.40464392]
[1759170426382,0.4558084,113950.0,113940.0,2.40264392]
[1759170426581,0.4558084,113950.0,113940.0,2.40664392]
[1759170428188,0.1063864,113950.0,113940.0,2.40664392]
[1759170428590,0.0186869,113950.0,113940.0,2.40664392]
[1759170433894,0.0186869,113950.0,113940.0,1.60596392]
[1759170434291,0.0186869,113950.0,113940.0,2.40740392]
[1759170436204,0.0186869,113950.0,113940.0,2.40716392]
[1759170439405,0.0186869,113950.0,113940.0,2.3599513]
[1759170444208,0.0186869,113950.0,113940.0,2.01059387]
[1759170445210,0.0186869,113950.0,113940.0,2.05798048]
[1759170446409,0.0186869,113950.0,113940.0,2.0895707]
[1759170447011,0.00442513,113950.0,113940.0,2.0895707]
[1759170447508,0.00442513,113950.0,113940.0,2.0894507]
[1759170451509,0.00442513,113950.0,113940.0,2.05786048]
[1759170454111,0.00442513,113950.0,113940.0,1.25662048]
[1759170454312,0.00442513,113950.0,113940.0,2.05726048]
[1759170455114,0.00442513,113950.0,113940.0,2.00987387]
[1759170456909,0.05390818,113970.0,113960.0,0.1236332]
[1759170457114,0.02364824,113980.0,113970.0,0.1236255]
[1759170457308,0.02369864,113980.0,113970.0,0.86533674]
[1759170457907,0.04121683,113980.0,113970.0,0.86533674]
[1759170458612,0.03990819,113980.0,113970.0,0.87427873]
[1759170459010,0.12758599,113980.0,113970.0,0.86533674]
[1759170459312,0.13258599,113980.0,113970.0,1.66597674]
[1759170459614,0.12758599,113980.0,113970.0,1.66597674]
[1759170459815,0.13758599,113980.0,113970.0,1.66597674]
[1759170460212,0.13758599,113980.0,113970.0,0.86533674]
[1759170460419,0.13758599,113980.0,113970.0,1.66593674]
[1759170460916,0.13758599,113980.0,113970.0,1.67144674]
[1759170461115,0.13758599,113980.0,113970.0,0.87084674]
[1759170461317,0.13758599,113980.0,113970.0,1.67144674]
[1759170462713,0.13758599,113980.0,113970.0,0.87084674]
[1759170462918,0.13758599,113980.0,113970.0,1.67140674]
[1759170463319,0.13758599,113980.0,113970.0,1.67998797]
[1759170465019,0.13758599,113980.0,113970.0,2.02931454]
[1759170465221,0.13758599,113980.0,113970.0,1.99772987]
[1759170466022,0.13758599,113980.0,113970.0,1.6484033]
[1759170466224,0.13758599,113980.0,113970.0,1.6483633]
[1759170467920,0.13758599,113980.0,113970.0,0.8478433]
[1759170468123,0.13758599,113980.0,113970.0,1.6483633]
[1759170472328,0.13758599,113980.0,113970.0,1.99768987]